[Event "*** Titled Tuesday Blitz"]
[Site "Chess.com"]
[Date "2020.04.14"]
[Round "1"]
[White "MoreChessJulia"]
[Black "Frogo47"]
[Result "0-1"]
[WhiteElo "1736"]
[BlackElo "2512"]
[TimeControl "180+1"]
[EndTime "10:01:13 PDT"]
[Termination "Frogo47 won by resignation"]

1. d4 {[%clk 0:02:59.2]} 1... Nf6 {[%clk 0:02:59.6]} 2. c4 {[%clk 0:02:59]} 2...
g6 {[%clk 0:03:00]} 3. f3 {[%clk 0:02:58.8]} 3... d5 {[%clk 0:02:58.3]} 4. cxd5
{[%clk 0:02:57.8]} 4... Nxd5 {[%clk 0:02:59.2]} 5. e4 {[%clk 0:02:57.8]} 5...
Nb6 {[%clk 0:03:00.1]} 6. a4 {[%clk 0:02:57.6]} 6... a5 {[%clk 0:02:58.6]} 7.
Nc3 {[%clk 0:02:56.6]} 7... Bg7 {[%clk 0:02:58.9]} 8. Be3 {[%clk 0:02:56.5]}
8... O-O {[%clk 0:02:59.3]} 9. Nge2 {[%clk 0:02:53.9]} 9... Nc6 {[%clk
0:02:59.5]} 10. Qd2 {[%clk 0:02:52.9]} 10... Nb4 {[%clk 0:02:59.5]} 11. g3
{[%clk 0:02:34.4]} 11... Nc4 {[%clk 0:02:58]} 12. Qc1 {[%clk 0:02:34.1]} 12...
Nxe3 {[%clk 0:02:57.9]} 13. Qxe3 {[%clk 0:02:33.2]} 13... Nc2+ {[%clk
0:02:57.9]} 0-1

[Event "*** Titled Tuesday Blitz"]
[Site "Chess.com"]
[Date "2020.04.14"]
[Round "1"]
[White "adiosabu"]
[Black "ridnani2021"]
[Result "1-0"]
[WhiteElo "2511"]
[BlackElo "1717"]
[TimeControl "180+1"]
[EndTime "10:01:24 PDT"]
[Termination "adiosabu won by resignation"]

1. e4 {[%clk 0:03:00.3]} 1... c5 {[%clk 0:02:59.5]} 2. Nf3 {[%clk 0:02:58.5]}
2... d6 {[%clk 0:02:59.9]} 3. d4 {[%clk 0:02:57.5]} 3... cxd4 {[%clk 0:03:00.3]}
4. Nxd4 {[%clk 0:02:57.2]} 4... Nf6 {[%clk 0:03:00.9]} 5. Nc3 {[%clk 0:02:56.4]}
5... a6 {[%clk 0:03:01.6]} 6. f4 {[%clk 0:02:54.2]} 6... g6 {[%clk 0:02:58.5]}
7. Nf3 {[%clk 0:02:53]} 7... Bg7 {[%clk 0:02:58.6]} 8. Bd3 {[%clk 0:02:53.5]}
8... O-O {[%clk 0:02:58.6]} 9. O-O {[%clk 0:02:53.4]} 9... Nc6 {[%clk
0:02:59.2]} 10. a3 {[%clk 0:02:52.1]} 10... Qb6+ {[%clk 0:02:58.5]} 11. Kh1
{[%clk 0:02:50.9]} 11... Ng4 {[%clk 0:02:59.1]} 12. Nd5 {[%clk 0:02:39.8]} 12...
Nf2+ {[%clk 0:02:55.8]} 13. Rxf2 {[%clk 0:02:33.4]} 13... Qxf2 {[%clk
0:02:55.7]} 14. Be3 {[%clk 0:02:32.7]} 14... Qxe3 {[%clk 0:02:50.2]} 15. Nxe3
{[%clk 0:02:31.5]} 15... Bxb2 {[%clk 0:02:51.1]} 1-0

[Event "*** Titled Tuesday Blitz"]
[Site "Chess.com"]
[Date "2020.04.14"]
[Round "1"]
[White "MarcoCorvi"]
[Black "DraskovicL"]
[Result "0-1"]
[WhiteElo "2151"]
[BlackElo "2557"]
[TimeControl "180+1"]
[EndTime "10:01:36 PDT"]
[Termination "DraskovicL won by resignation"]

1. e4 {[%clk 0:02:59.1]} 1... d5 {[%clk 0:02:58.6]} 2. exd5 {[%clk 0:02:56.6]}
2... Qxd5 {[%clk 0:02:59.5]} 3. Nc3 {[%clk 0:02:54]} 3... Qd6 {[%clk 0:02:59.4]}
4. g3 {[%clk 0:02:47.6]} 4... g6 {[%clk 0:02:55.1]} 5. Bg2 {[%clk 0:02:46]} 5...
Bg7 {[%clk 0:02:54.9]} 6. Nge2 {[%clk 0:02:42.1]} 6... Nf6 {[%clk 0:02:52.7]} 7.
O-O {[%clk 0:02:40.1]} 7... O-O {[%clk 0:02:52.4]} 8. d3 {[%clk 0:02:39.3]} 8...
c6 {[%clk 0:02:44.6]} 9. Re1 {[%clk 0:02:34.1]} 9... Bg4 {[%clk 0:02:31.7]} 10.
h3 {[%clk 0:02:31.4]} 10... Bf5 {[%clk 0:02:24.4]} 0-1

[Event "*** Titled Tuesday Blitz"]
[Site "Chess.com"]
[Date "2020.04.14"]
[Round "1"]
[White "AyMitecK"]
[Black "Willychess95"]
[Result "0-1"]
[WhiteElo "2299"]
[BlackElo "2645"]
[TimeControl "180+1"]
[EndTime "10:01:37 PDT"]
[Termination "Willychess95 won by resignation"]

1. e4 {[%clk 0:03:00.5]} 1... c5 {[%clk 0:02:59.7]} 2. Nc3 {[%clk 0:03:00.9]}
2... d6 {[%clk 0:02:59.7]} 3. d4 {[%clk 0:03:00.4]} 3... cxd4 {[%clk 0:02:58.7]}
4. Qxd4 {[%clk 0:03:01.3]} 4... a6 {[%clk 0:02:59]} 5. Bg5 {[%clk 0:03:00.6]}
5... Nc6 {[%clk 0:02:58.9]} 6. Qd2 {[%clk 0:02:59.9]} 6... h6 {[%clk 0:02:58.9]}
7. Bh4 {[%clk 0:02:58.7]} 7... g5 {[%clk 0:02:58]} 8. Bg3 {[%clk 0:02:59.1]}
8... Bg7 {[%clk 0:02:58.3]} 9. f3 {[%clk 0:02:52.2]} 9... Nf6 {[%clk 0:02:56.2]}
10. Nge2 {[%clk 0:02:49]} 10... Qa5 {[%clk 0:02:55.7]} 11. h4 {[%clk 0:02:40]}
11... Be6 {[%clk 0:02:36.3]} 12. hxg5 {[%clk 0:02:37.4]} 12... hxg5 {[%clk
0:02:35.5]} 13. Rxh8+ {[%clk 0:02:38.3]} 13... Bxh8 {[%clk 0:02:35.6]} 14. Qxg5
{[%clk 0:02:35.5]} 14... Qxg5 {[%clk 0:02:34.5]} 0-1

[Event "*** Titled Tuesday Blitz"]
[Site "Chess.com"]
[Date "2020.04.14"]
[Round "1"]
[White "Er_is_geen_hoop_meer"]
[Black "Jospem"]
[Result "0-1"]
[WhiteElo "2471"]
[BlackElo "2888"]
[TimeControl "180+1"]
[EndTime "10:02:44 PDT"]
[Termination "Jospem won by resignation"]

1. b4 {[%clk 0:02:59.8]} 1... Nf6 {[%clk 0:02:57.9]} 2. Bb2 {[%clk 0:02:59.5]}
2... e6 {[%clk 0:02:58.8]} 3. a3 {[%clk 0:02:59]} 3... Be7 {[%clk 0:02:58]} 4.
e3 {[%clk 0:02:58.8]} 4... O-O {[%clk 0:02:58.6]} 5. g4 {[%clk 0:02:59.4]} 5...
d5 {[%clk 0:02:59.2]} 6. g5 {[%clk 0:02:59.5]} 6... Nfd7 {[%clk 0:02:58.6]} 7.
h4 {[%clk 0:03:00.4]} 7... e5 {[%clk 0:02:58.5]} 8. f4 {[%clk 0:02:59.7]} 8...
exf4 {[%clk 0:02:57.7]} 9. Bd3 {[%clk 0:02:59.8]} 9... Bd6 {[%clk 0:02:50.9]}
10. Bxh7+ {[%clk 0:02:59.3]} 10... Kxh7 {[%clk 0:02:48.7]} 11. Qh5+ {[%clk
0:03:00.2]} 11... Kg8 {[%clk 0:02:48.2]} 12. Bxg7 {[%clk 0:03:01.1]} 12... Kxg7
{[%clk 0:02:45.2]} 13. Qh6+ {[%clk 0:03:01.4]} 13... Kg8 {[%clk 0:02:45.5]} 14.
g6 {[%clk 0:03:02.3]} 14... Nf6 {[%clk 0:02:36.9]} 15. g7 {[%clk 0:03:02]} 15...
Nh7 {[%clk 0:02:33.6]} 16. Nf3 {[%clk 0:03:01.8]} 16... Re8 {[%clk 0:02:27.5]}
17. Ng5 {[%clk 0:03:02]} 17... Bf5 {[%clk 0:02:27.9]} 18. Nc3 {[%clk 0:03:00.8]}
18... Qf6 {[%clk 0:02:21.9]} 19. Qh5 {[%clk 0:02:56.1]} 19... c6 {[%clk
0:02:20.6]} 20. O-O-O {[%clk 0:02:53.5]} 20... a5 {[%clk 0:02:20.7]} 21. b5
{[%clk 0:02:53]} 21... cxb5 {[%clk 0:02:13.6]} 22. d4 {[%clk 0:02:48.5]} 22...
Qg6 {[%clk 0:02:09.1]} 23. Qf3 {[%clk 0:02:47.5]} 23... Rxe3 {[%clk 0:02:05.4]}
24. Qxd5 {[%clk 0:02:44.5]} 24... Rxc3 {[%clk 0:02:05.6]} 25. Rdg1 {[%clk
0:02:44.1]} 25... Be6 {[%clk 0:01:57]} 26. Ne4 {[%clk 0:02:39]} 26... Rxc2+
{[%clk 0:01:52.2]} 27. Kxc2 {[%clk 0:02:38.7]} 27... Bxd5 {[%clk 0:01:52.5]} 28.
Rxg6 {[%clk 0:02:38.8]} 28... Bxe4+ {[%clk 0:01:53]} 0-1

[Event "*** Titled Tuesday Blitz"]
[Site "Chess.com"]
[Date "2020.04.14"]
[Round "1"]
[White "theprosecution1"]
[Black "WinningButNotReally"]
[Result "1-0"]
[WhiteElo "2803"]
[BlackElo "2421"]
[TimeControl "180+1"]
[EndTime "10:02:52 PDT"]
[Termination "theprosecution1 won by resignation"]

1. e4 {[%clk 0:03:00.8]} 1... c6 {[%clk 0:02:59.5]} 2. Nc3 {[%clk 0:03:00.2]}
2... d5 {[%clk 0:02:59.4]} 3. Nf3 {[%clk 0:03:01.1]} 3... Bg4 {[%clk 0:02:59.1]}
4. h3 {[%clk 0:03:00.4]} 4... Bxf3 {[%clk 0:02:58.2]} 5. Qxf3 {[%clk 0:03:01.3]}
5... e6 {[%clk 0:02:58.5]} 6. Be2 {[%clk 0:02:58.5]} 6... Nd7 {[%clk 0:02:57.5]}
7. O-O {[%clk 0:02:58.6]} 7... Ngf6 {[%clk 0:02:57.2]} 8. d4 {[%clk 0:02:55.7]}
8... dxe4 {[%clk 0:02:53.6]} 9. Nxe4 {[%clk 0:02:56.6]} 9... Be7 {[%clk
0:02:52.8]} 10. Rd1 {[%clk 0:02:50.5]} 10... O-O {[%clk 0:02:51.7]} 11. c4
{[%clk 0:02:45.7]} 11... Nxe4 {[%clk 0:02:47.7]} 12. Qxe4 {[%clk 0:02:46.1]}
12... Nf6 {[%clk 0:02:48]} 13. Qh4 {[%clk 0:02:44.3]} 13... Qb6 {[%clk
0:01:58.8]} 14. b3 {[%clk 0:02:42.2]} 14... Rad8 {[%clk 0:01:58]} 15. Bb2 {[%clk
0:02:37.9]} 15... c5 {[%clk 0:01:52.6]} 16. Rd3 {[%clk 0:02:32.2]} 16... Nd7
{[%clk 0:01:39.6]} 17. Qxe7 {[%clk 0:02:27.7]} 1-0

[Event "*** Titled Tuesday Blitz"]
[Site "Chess.com"]
[Date "2020.04.14"]
[Round "1"]
[White "GamayevOleg"]
[Black "Alkhoori90"]
[Result "1-0"]
[WhiteElo "2526"]
[BlackElo "2049"]
[TimeControl "180+1"]
[EndTime "10:03:04 PDT"]
[Termination "GamayevOleg won by resignation"]

1. d3 {[%clk 0:03:00.6]} 1... d6 {[%clk 0:02:59.9]} 2. e4 {[%clk 0:03:00.6]}
2... Nf6 {[%clk 0:03:00.4]} 3. Nf3 {[%clk 0:03:01]} 3... g6 {[%clk 0:03:01.3]}
4. Be2 {[%clk 0:03:01.4]} 4... Bg7 {[%clk 0:03:01.4]} 5. O-O {[%clk 0:03:01.8]}
5... O-O {[%clk 0:03:01.9]} 6. c3 {[%clk 0:03:02.1]} 6... c6 {[%clk 0:03:02.6]}
7. a4 {[%clk 0:03:02.2]} 7... a5 {[%clk 0:03:02.7]} 8. Nbd2 {[%clk 0:03:02.1]}
8... Nbd7 {[%clk 0:03:02.7]} 9. Re1 {[%clk 0:03:02.5]} 9... e5 {[%clk
0:03:01.2]} 10. Qc2 {[%clk 0:03:02.7]} 10... Nh5 {[%clk 0:02:51]} 11. Nc4 {[%clk
0:03:00.1]} 11... Qe7 {[%clk 0:02:46.4]} 12. b3 {[%clk 0:02:58.9]} 12... f5
{[%clk 0:02:41.9]} 13. Ba3 {[%clk 0:02:54.9]} 13... Rf6 {[%clk 0:02:38.1]} 14.
Bc1 {[%clk 0:02:53]} 14... h6 {[%clk 0:02:36.3]} 15. exf5 {[%clk 0:02:45.9]}
15... Rxf5 {[%clk 0:02:18.8]} 16. d4 {[%clk 0:02:45.2]} 16... Nf4 {[%clk
0:01:53.8]} 17. Bxf4 {[%clk 0:02:39.8]} 17... exf4 {[%clk 0:01:51.5]} 18. Bd3
{[%clk 0:02:37.7]} 18... Qf7 {[%clk 0:01:40.2]} 19. Nxd6 {[%clk 0:02:33.7]}
19... Qf8 {[%clk 0:01:39.9]} 20. Nxf5 {[%clk 0:02:32.2]} 20... gxf5 {[%clk
0:01:40.8]} 21. Bxf5 {[%clk 0:02:32.4]} 21... Nf6 {[%clk 0:01:40.1]} 22. Bxc8
{[%clk 0:02:33.3]} 22... Rxc8 {[%clk 0:01:41]} 23. Qg6 {[%clk 0:02:30.9]} 1-0

[Event "*** Titled Tuesday Blitz"]
[Site "Chess.com"]
[Date "2020.04.14"]
[Round "1"]
[White "TudorAnton"]
[Black "Bagirova"]
[Result "1-0"]
[WhiteElo "2574"]
[BlackElo "2187"]
[TimeControl "180+1"]
[EndTime "10:03:17 PDT"]
[Termination "TudorAnton won by checkmate"]

1. d4 {[%clk 0:03:00.9]} 1... f5 {[%clk 0:02:52.3]} 2. Bg5 {[%clk 0:02:58.5]}
2... g6 {[%clk 0:02:51]} 3. e4 {[%clk 0:02:58.3]} 3... Bg7 {[%clk 0:02:51.2]} 4.
exf5 {[%clk 0:02:57.6]} 4... gxf5 {[%clk 0:02:51.4]} 5. Qh5+ {[%clk 0:02:57.2]}
5... Kf8 {[%clk 0:02:49.8]} 6. Nc3 {[%clk 0:02:57.2]} 6... Nf6 {[%clk
0:02:49.2]} 7. Bxf6 {[%clk 0:02:56.9]} 7... exf6 {[%clk 0:02:46.7]} 8. O-O-O
{[%clk 0:02:57.8]} 8... d5 {[%clk 0:02:45]} 9. Bd3 {[%clk 0:02:55.5]} 9... Be6
{[%clk 0:02:16.5]} 10. Nh3 {[%clk 0:02:54.2]} 10... Bf7 {[%clk 0:02:16]} 11.
Qxf5 {[%clk 0:02:53.4]} 11... c6 {[%clk 0:02:12.6]} 12. Nf4 {[%clk 0:02:51.5]}
12... Bh6 {[%clk 0:02:05.4]} 13. Kb1 {[%clk 0:02:52]} 13... Bxf4 {[%clk
0:02:04.8]} 14. Qxf4 {[%clk 0:02:52.9]} 14... Bg6 {[%clk 0:02:00.8]} 15. Rhe1
{[%clk 0:02:44.9]} 15... Nd7 {[%clk 0:01:56.9]} 16. Qd6+ {[%clk 0:02:35.7]}
16... Kg8 {[%clk 0:01:47.6]} 17. Re7 {[%clk 0:02:32.3]} 17... Nb6 {[%clk
0:01:14.9]} 18. Qe6+ {[%clk 0:02:30.6]} 18... Kf8 {[%clk 0:01:10.9]} 19. Qxf6+
{[%clk 0:02:30.7]} 19... Kg8 {[%clk 0:01:10.1]} 20. Qg7# {[%clk 0:02:30.8]} 1-0

[Event "*** Titled Tuesday Blitz"]
[Site "Chess.com"]
[Date "2020.04.14"]
[Round "1"]
[White "Peng_Li-Min"]
[Black "ljuks68"]
[Result "0-1"]
[WhiteElo "2645"]
[BlackElo "2347"]
[TimeControl "180+1"]
[EndTime "10:03:21 PDT"]
[Termination "ljuks68 won by resignation"]

1. c4 {[%clk 0:02:57.4]} 1... c6 {[%clk 0:02:59.4]} 2. d4 {[%clk 0:02:55.1]}
2... d5 {[%clk 0:02:59.5]} 3. Nf3 {[%clk 0:02:53.9]} 3... Nf6 {[%clk 0:02:57.8]}
4. Nc3 {[%clk 0:02:53.4]} 4... dxc4 {[%clk 0:02:57.7]} 5. a4 {[%clk 0:02:50.3]}
5... Bf5 {[%clk 0:02:56.7]} 6. e3 {[%clk 0:02:41]} 6... e6 {[%clk 0:02:56.6]} 7.
Bxc4 {[%clk 0:02:40.4]} 7... Bb4 {[%clk 0:02:56.3]} 8. O-O {[%clk 0:02:39.7]}
8... Nbd7 {[%clk 0:02:56.4]} 9. Qe2 {[%clk 0:02:37.5]} 9... O-O {[%clk
0:02:55.4]} 10. Bd2 {[%clk 0:02:30.5]} 10... Qe7 {[%clk 0:02:52.6]} 11. Rfe1
{[%clk 0:02:26.1]} 11... e5 {[%clk 0:02:51.1]} 12. dxe5 {[%clk 0:01:39.2]} 12...
Nxe5 {[%clk 0:02:50.2]} 13. Nxe5 {[%clk 0:01:40.1]} 13... Qxe5 {[%clk
0:02:49.8]} 14. e4 {[%clk 0:01:38.3]} 14... Be6 {[%clk 0:02:48.1]} 15. Bd3
{[%clk 0:01:34.7]} 15... Rad8 {[%clk 0:02:40.6]} 16. Bc2 {[%clk 0:01:26.8]}
16... Bc5 {[%clk 0:02:31.2]} 17. Be3 {[%clk 0:01:19.1]} 17... Ng4 {[%clk
0:02:18.9]} 18. Bxc5 {[%clk 0:01:16.1]} 18... Qxh2+ {[%clk 0:02:17.1]} 19. Kf1
{[%clk 0:01:16]} 0-1

[Event "*** Titled Tuesday Blitz"]
[Site "Chess.com"]
[Date "2020.04.14"]
[Round "1"]
[White "JiaHaoxiang"]
[Black "isla88"]
[Result "1-0"]
[WhiteElo "2628"]
[BlackElo "2282"]
[TimeControl "180+1"]
[EndTime "10:03:28 PDT"]
[Termination "JiaHaoxiang won by resignation"]

1. d4 {[%clk 0:03:00.9]} 1... Nf6 {[%clk 0:02:59.3]} 2. c4 {[%clk 0:03:00.6]}
2... e5 {[%clk 0:02:58.5]} 3. dxe5 {[%clk 0:03:00.2]} 3... Ng4 {[%clk 0:02:59]}
4. Nf3 {[%clk 0:02:59.8]} 4... Bc5 {[%clk 0:02:58]} 5. e3 {[%clk 0:02:59.8]}
5... Nc6 {[%clk 0:02:58.5]} 6. b3 {[%clk 0:02:58.3]} 6... Ngxe5 {[%clk
0:02:56.2]} 7. Bb2 {[%clk 0:02:57.5]} 7... Qe7 {[%clk 0:02:44.5]} 8. Nbd2 {[%clk
0:02:54.8]} 8... a5 {[%clk 0:02:40.8]} 9. Be2 {[%clk 0:02:52.5]} 9... O-O {[%clk
0:02:38.2]} 10. O-O {[%clk 0:02:52]} 10... Ra6 {[%clk 0:02:37.5]} 11. Ne4 {[%clk
0:02:37.2]} 11... Ba7 {[%clk 0:02:33.8]} 12. c5 {[%clk 0:02:27.9]} 12... Nxf3+
{[%clk 0:02:30]} 13. gxf3 {[%clk 0:02:27.9]} 13... f5 {[%clk 0:02:21]} 14. Bxa6
{[%clk 0:02:20.2]} 14... fxe4 {[%clk 0:02:18.9]} 15. Bc4+ {[%clk 0:02:19.9]}
15... Kh8 {[%clk 0:02:16.2]} 16. f4 {[%clk 0:02:17.2]} 16... Bxc5 {[%clk
0:02:10.7]} 17. Kh1 {[%clk 0:02:04.8]} 17... Qh4 {[%clk 0:02:06.5]} 18. Rg1
{[%clk 0:02:02.2]} 18... Bd4 {[%clk 0:01:29.8]} 19. Bxd4 {[%clk 0:01:59.3]} 1-0

[Event "*** Titled Tuesday Blitz"]
[Site "Chess.com"]
[Date "2020.04.14"]
[Round "1"]
[White "Talcrifice"]
[Black "K1TTYGANG"]
[Result "1-0"]
[WhiteElo "2551"]
[BlackElo "2126"]
[TimeControl "180+1"]
[EndTime "10:03:30 PDT"]
[Termination "Talcrifice won by resignation"]

1. d4 {[%clk 0:03:00.9]} 1... d5 {[%clk 0:03:00.1]} 2. c4 {[%clk 0:03:01.2]}
2... e6 {[%clk 0:02:59.9]} 3. Nc3 {[%clk 0:02:59.2]} 3... Nf6 {[%clk 0:02:58.5]}
4. cxd5 {[%clk 0:02:59.5]} 4... exd5 {[%clk 0:02:58.6]} 5. Bg5 {[%clk
0:02:59.5]} 5... c6 {[%clk 0:02:57.1]} 6. e3 {[%clk 0:02:59.6]} 6... Be7 {[%clk
0:02:57]} 7. Bd3 {[%clk 0:02:59.3]} 7... Nbd7 {[%clk 0:02:57.3]} 8. Qc2 {[%clk
0:02:59.2]} 8... Nf8 {[%clk 0:02:57.5]} 9. Nge2 {[%clk 0:02:59.5]} 9... Ne6
{[%clk 0:02:57.1]} 10. Bh4 {[%clk 0:02:59.6]} 10... g6 {[%clk 0:02:56.9]} 11.
O-O {[%clk 0:02:59.3]} 11... Ng7 {[%clk 0:02:56.9]} 12. f3 {[%clk 0:02:56.3]}
12... O-O {[%clk 0:02:56.7]} 13. Rae1 {[%clk 0:02:54]} 13... b6 {[%clk
0:02:56.6]} 14. h3 {[%clk 0:02:50.9]} 14... Bb7 {[%clk 0:02:56.4]} 15. e4 {[%clk
0:02:49.3]} 15... c5 {[%clk 0:02:53.9]} 16. e5 {[%clk 0:02:46.3]} 16... Nd7
{[%clk 0:02:54]} 17. Bxe7 {[%clk 0:02:45.2]} 17... Qxe7 {[%clk 0:02:54.9]} 18.
f4 {[%clk 0:02:45.1]} 18... Rac8 {[%clk 0:02:53.3]} 19. Qd2 {[%clk 0:02:42.6]}
19... cxd4 {[%clk 0:02:52.3]} 20. Nxd4 {[%clk 0:02:42.9]} 20... Nc5 {[%clk
0:02:52.5]} 21. Bb1 {[%clk 0:02:41.3]} 21... Ne4 {[%clk 0:02:44]} 22. Nxe4
{[%clk 0:02:29.5]} 22... dxe4 {[%clk 0:02:44.9]} 23. Bxe4 {[%clk 0:02:28.7]}
23... Rfd8 {[%clk 0:02:44.3]} 24. Bxb7 {[%clk 0:02:25.8]} 24... Qxb7 {[%clk
0:02:45.2]} 25. Qf2 {[%clk 0:02:24.4]} 25... Qd5 {[%clk 0:02:41.5]} 26. Nb3
{[%clk 0:01:58.6]} 26... Nf5 {[%clk 0:02:36.1]} 27. g4 {[%clk 0:01:46.9]} 27...
Ne7 {[%clk 0:02:27.2]} 28. f5 {[%clk 0:01:42.6]} 28... Qd3 {[%clk 0:02:24]} 29.
Re3 {[%clk 0:01:38.6]} 29... Qa6 {[%clk 0:02:18.4]} 30. fxg6 {[%clk 0:01:31.4]}
1-0

[Event "*** Titled Tuesday Blitz"]
[Site "Chess.com"]
[Date "2020.04.14"]
[Round "1"]
[White "Anna_ChessMate"]
[Black "mirochka"]
[Result "1-0"]
[WhiteElo "2611"]
[BlackElo "2238"]
[TimeControl "180+1"]
[EndTime "10:03:50 PDT"]
[Termination "Anna_ChessMate won by resignation"]

1. d4 {[%clk 0:02:59.9]} 1... Nf6 {[%clk 0:02:59]} 2. c4 {[%clk 0:02:57.8]} 2...
e6 {[%clk 0:02:58]} 3. Nf3 {[%clk 0:02:57.7]} 3... d5 {[%clk 0:02:57.4]} 4. Nc3
{[%clk 0:02:57.3]} 4... Be7 {[%clk 0:02:56.8]} 5. Bf4 {[%clk 0:02:56.8]} 5... b6
{[%clk 0:02:41.9]} 6. e3 {[%clk 0:02:54.2]} 6... Bb7 {[%clk 0:02:41.1]} 7. Rc1
{[%clk 0:02:53.7]} 7... O-O {[%clk 0:02:26.5]} 8. h3 {[%clk 0:02:49.2]} 8... c5
{[%clk 0:02:19.3]} 9. cxd5 {[%clk 0:02:47.8]} 9... Nxd5 {[%clk 0:02:15.4]} 10.
Nxd5 {[%clk 0:02:45.7]} 10... Bxd5 {[%clk 0:02:13.6]} 11. a3 {[%clk 0:02:38.7]}
11... Nd7 {[%clk 0:02:01.9]} 12. Bc4 {[%clk 0:02:32.2]} 12... Bxc4 {[%clk
0:01:54]} 13. Rxc4 {[%clk 0:02:32.4]} 13... b5 {[%clk 0:01:50.6]} 14. Rc2 {[%clk
0:02:23.3]} 14... c4 {[%clk 0:01:47.8]} 15. O-O {[%clk 0:02:22.8]} 15... Nb6
{[%clk 0:01:45]} 16. Ne5 {[%clk 0:02:22.4]} 16... Rc8 {[%clk 0:01:42.9]} 17. Qf3
{[%clk 0:02:19.7]} 17... Qd5 {[%clk 0:01:38.4]} 18. Qg3 {[%clk 0:02:15.6]} 18...
Bf6 {[%clk 0:01:23.5]} 19. Ng4 {[%clk 0:02:13.5]} 19... Qf5 {[%clk 0:01:13.3]}
20. Nh6+ {[%clk 0:02:12.8]} 1-0

[Event "*** Titled Tuesday Blitz"]
[Site "Chess.com"]
[Date "2020.04.14"]
[Round "1"]
[White "Megagigahiper3345"]
[Black "Indianlad"]
[Result "0-1"]
[WhiteElo "2497"]
[BlackElo "2965"]
[TimeControl "180+1"]
[EndTime "10:03:59 PDT"]
[Termination "Indianlad won by resignation"]

1. d4 {[%clk 0:02:59.7]} 1... Nf6 {[%clk 0:03:00.3]} 2. c4 {[%clk 0:02:59.1]}
2... g6 {[%clk 0:03:00.5]} 3. Nc3 {[%clk 0:02:58.6]} 3... d5 {[%clk 0:03:00.9]}
4. cxd5 {[%clk 0:02:49]} 4... Nxd5 {[%clk 0:03:01.8]} 5. e4 {[%clk 0:02:48.9]}
5... Nxc3 {[%clk 0:03:01.9]} 6. bxc3 {[%clk 0:02:49.8]} 6... Bg7 {[%clk
0:03:02.2]} 7. Nf3 {[%clk 0:02:49.8]} 7... c5 {[%clk 0:03:02.7]} 8. Rb1 {[%clk
0:02:49.2]} 8... O-O {[%clk 0:02:39.2]} 9. Be2 {[%clk 0:02:48.5]} 9... Nc6
{[%clk 0:02:38.8]} 10. d5 {[%clk 0:02:41.6]} 10... Bxc3+ {[%clk 0:02:35.9]} 11.
Bd2 {[%clk 0:02:41.5]} 11... Bxd2+ {[%clk 0:02:36.3]} 12. Qxd2 {[%clk
0:02:42.4]} 12... Na5 {[%clk 0:02:36.6]} 13. h4 {[%clk 0:02:22.7]} 13... Bg4
{[%clk 0:02:26.4]} 14. h5 {[%clk 0:02:11.7]} 14... Bxf3 {[%clk 0:02:22.9]} 15.
Bxf3 {[%clk 0:02:10.3]} 15... Nc4 {[%clk 0:02:07.5]} 16. Qh6 {[%clk 0:01:41.1]}
16... Qa5+ {[%clk 0:02:07.3]} 17. Kf1 {[%clk 0:01:41.2]} 17... Qd2 {[%clk
0:01:46.7]} 18. hxg6 {[%clk 0:01:32]} 18... Qxh6 {[%clk 0:01:47]} 19. Rxh6
{[%clk 0:01:32.3]} 19... Nd2+ {[%clk 0:01:47.4]} 20. Ke2 {[%clk 0:01:21.9]}
20... Nxb1 {[%clk 0:01:48.3]} 0-1

[Event "*** Titled Tuesday Blitz"]
[Site "Chess.com"]
[Date "2020.04.14"]
[Round "1"]
[White "Eltaj_Safarli"]
[Black "kagg1125"]
[Result "1-0"]
[WhiteElo "3066"]
[BlackElo "2505"]
[TimeControl "180+1"]
[EndTime "10:04:07 PDT"]
[Termination "Eltaj_Safarli won by resignation"]

1. e4 {[%clk 0:02:59.5]} 1... e5 {[%clk 0:02:59.3]} 2. Nf3 {[%clk 0:02:51.9]}
2... Nc6 {[%clk 0:02:59.7]} 3. Nc3 {[%clk 0:02:52.3]} 3... Nf6 {[%clk
0:02:59.5]} 4. a3 {[%clk 0:02:51.7]} 4... d5 {[%clk 0:02:58.5]} 5. Bb5 {[%clk
0:02:50.9]} 5... d4 {[%clk 0:02:25.8]} 6. Ne2 {[%clk 0:02:49.1]} 6... Bd6 {[%clk
0:02:20.9]} 7. c3 {[%clk 0:02:47.7]} 7... dxc3 {[%clk 0:02:20]} 8. d4 {[%clk
0:02:47.8]} 8... Qe7 {[%clk 0:02:08.3]} 9. bxc3 {[%clk 0:02:19.3]} 9... O-O
{[%clk 0:02:00.6]} 10. d5 {[%clk 0:01:59.9]} 10... Na5 {[%clk 0:01:47.5]} 11.
Bd3 {[%clk 0:01:58.8]} 11... h6 {[%clk 0:01:46.8]} 12. O-O {[%clk 0:01:58.2]}
12... b6 {[%clk 0:01:47]} 13. Ng3 {[%clk 0:01:55.5]} 13... Nb7 {[%clk
0:01:45.5]} 14. Nh4 {[%clk 0:01:53]} 14... Nc5 {[%clk 0:01:36.7]} 15. Nhf5
{[%clk 0:01:51.5]} 15... Bxf5 {[%clk 0:01:36.7]} 16. Nxf5 {[%clk 0:01:52.4]}
16... Qd7 {[%clk 0:01:37.4]} 17. Bc2 {[%clk 0:01:51.1]} 17... Ncxe4 {[%clk
0:01:23]} 18. Bxe4 {[%clk 0:01:50.2]} 18... Nxe4 {[%clk 0:01:23.9]} 19. Qg4
{[%clk 0:01:49.9]} 1-0

[Event "*** Titled Tuesday Blitz"]
[Site "Chess.com"]
[Date "2020.04.14"]
[Round "1"]
[White "AnkitGajwa"]
[Black "1lec"]
[Result "1-0"]
[WhiteElo "2552"]
[BlackElo "2144"]
[TimeControl "180+1"]
[EndTime "10:04:08 PDT"]
[Termination "AnkitGajwa won by resignation"]

1. e4 {[%clk 0:02:43.7]} 1... c5 {[%clk 0:02:59.4]} 2. Nf3 {[%clk 0:02:36.9]}
2... d6 {[%clk 0:02:58.8]} 3. d4 {[%clk 0:02:36.8]} 3... cxd4 {[%clk 0:02:59.7]}
4. Nxd4 {[%clk 0:02:36.8]} 4... Nf6 {[%clk 0:02:59.7]} 5. Nc3 {[%clk 0:02:36.4]}
5... a6 {[%clk 0:02:59.9]} 6. Bg5 {[%clk 0:02:36.1]} 6... e6 {[%clk 0:03:00.1]}
7. f4 {[%clk 0:02:34.8]} 7... Qc7 {[%clk 0:03:00.2]} 8. Bxf6 {[%clk 0:02:32.2]}
8... gxf6 {[%clk 0:03:00]} 9. Qd2 {[%clk 0:02:31.9]} 9... Nc6 {[%clk 0:02:58.5]}
10. Nb3 {[%clk 0:02:31.1]} 10... Bd7 {[%clk 0:02:57.1]} 11. O-O-O {[%clk
0:02:29.2]} 11... O-O-O {[%clk 0:02:56.5]} 12. Kb1 {[%clk 0:02:28.3]} 12... Be7
{[%clk 0:02:32.7]} 13. g3 {[%clk 0:02:24]} 13... h5 {[%clk 0:02:17.6]} 14. Be2
{[%clk 0:02:21.8]} 14... h4 {[%clk 0:02:15.4]} 15. g4 {[%clk 0:02:20.8]} 15...
Kb8 {[%clk 0:01:56.8]} 16. h3 {[%clk 0:02:18.6]} 16... Rc8 {[%clk 0:01:46.9]}
17. Rhf1 {[%clk 0:02:13.6]} 17... Ka7 {[%clk 0:01:12.8]} 18. Rf3 {[%clk
0:01:48]} 18... Na5 {[%clk 0:01:02.6]} 19. Nxa5 {[%clk 0:01:47.5]} 19... Qxa5
{[%clk 0:01:02.8]} 20. Nb5+ {[%clk 0:01:48]} 1-0